bitfinex/quotes_BTCUSD_20251116
["timestamp","ask_amount","ask_price","bid_price","bid_amount"]
[1763271133442,0.02079446,96078.0,96074.0,0.02799305]
[1763271133646,0.02079446,96082.0,96075.0,0.02799305]
[1763271133821,0.02079446,96081.0,96076.0,0.02799305]
[1763271134951,0.02296,96083.0,96076.0,0.02799305]
[1763271134952,0.02079446,96082.0,96076.0,0.02799305]
[1763271135152,0.02079446,96081.0,96076.0,0.02799305]
[1763271135359,0.02079446,96081.0,96077.0,0.02799305]
[1763271136176,0.02079446,96082.0,96077.0,0.02799305]
[1763271136355,0.02079446,96081.0,96077.0,0.02799305]
[1763271136979,0.02079446,96081.0,96078.0,0.02799305]
[1763271137338,0.02079446,96082.0,96078.0,0.02799305]
[1763271137541,0.02079446,96081.0,96078.0,0.02799305]
[1763271138160,0.02079446,96081.0,96077.0,0.02799305]
[1763271138588,0.02079446,96082.0,96077.0,0.02799305]
[1763271138721,0.02079446,96081.0,96077.0,0.02799305]
[1763271139326,0.01175,96078.0,96077.0,0.02799305]
[1763271140027,0.02782,96078.0,96077.0,0.02799305]
[1763271140200,0.01175,96078.0,96077.0,0.02799305]
[1763271141122,0.01175,96078.0,96077.0,0.02899305]
[1763271141527,0.02782,96078.0,96077.0,0.02899305]
[1763271143970,0.02070209,96081.0,96077.0,0.02899305]
[1763271144179,0.02079446,96085.0,96077.0,0.02899305]
[1763271145916,0.02079446,96085.0,96077.0,0.02799305]
[1763271146878,0.02079446,96085.0,96082.0,0.10410215]
[1763271147066,0.323,96086.0,96082.0,0.10410215]
[1763271147466,0.02079446,96085.0,96082.0,0.10410215]
[1763271147866,0.32265682,96092.0,96091.0,0.00872]
[1763271148067,0.323,96092.0,96091.0,0.00872]
[1763271148407,0.16132841,96100.0,96091.0,0.00872]
[1763271148612,0.34379446,96099.0,96088.0,0.02799305]
[1763271148757,0.323,96097.0,96088.0,0.02799305]
[1763271148963,0.02079446,96096.0,96088.0,0.02799305]
[1763271149368,0.02079446,96096.0,96087.0,0.02799305]
[1763271149592,0.01175,96095.0,96087.0,0.02799305]
[1763271149810,0.02079446,96094.0,96087.0,0.02799305]
[1763271150781,0.01175,96088.0,96085.0,0.02799305]
[1763271152431,0.01175,96088.0,96086.0,0.02799305]
[1763271153285,0.01175,96088.0,96085.0,0.001]
[1763271153286,0.01175,96088.0,96085.0,0.02899305]
[1763271153497,0.01175,96088.0,96086.0,0.02799305]
[1763271153910,0.01175,96088.0,96086.0,0.001]
[1763271154350,0.01175,96088.0,96085.0,0.02799305]
[1763271155365,0.01175,96088.0,96086.0,0.02799305]
[1763271155692,0.01175,96088.0,96083.0,0.03724789]
[1763271155968,0.52111116,96093.0,96085.0,0.001]
[1763271156175,0.35978275,96093.0,96092.0,0.00872]
[1763271156313,0.01633147,96093.0,96092.0,0.00872]
[1763271157767,0.01633147,96093.0,96092.0,0.06125482]
[1763271157996,0.01633122,96094.0,96092.0,0.06125482]
[1763271158182,0.01633122,96094.0,96092.0,0.03327]
[1763271159431,0.01633122,96094.0,96093.0,0.02798373]
[1763271160099,0.01633122,96094.0,96092.0,0.03327]
[1763271161083,0.01633122,96094.0,96092.0,0.00872]
[1763271161325,0.01633122,96094.0,96092.0,0.03769829]
[1763271163417,0.01633122,96094.0,96092.0,0.02897829]
[1763271165394,5.152e-05,96097.0,96092.0,0.02897829]
[1763271166457,5.152e-05,96097.0,96089.0,0.02797829]
[1763271166458,0.02782,96093.0,96089.0,0.02797829]
[1763271166658,0.02782,96090.0,96084.0,0.02797829]
[1763271166861,0.0154,96085.0,96083.0,0.02797829]
[1763271167056,0.01242,96090.0,96077.0,0.03724789]
[1763271167057,0.02471,96089.0,96082.0,0.02797829]
[1763271167286,0.02471,96089.0,96081.0,0.02797829]
[1763271167662,0.0154,96082.0,96081.0,0.02797829]
[1763271170012,0.0154,96082.0,96078.0,0.02797829]
[1763271170213,0.0154,96079.0,96078.0,0.02797829]
[1763271170435,0.0154,96079.0,96073.0,0.03724789]
[1763271170993,0.0154,96079.0,96078.0,0.02798544]
[1763271171450,0.03173216,96079.0,96078.0,0.02798544]
[1763271171812,0.0154,96079.0,96078.0,0.02798544]
[1763271172447,0.0154,96079.0,96073.0,0.001]
[1763271172448,0.0154,96079.0,96077.0,0.02798544]
[1763271172647,0.02471,96082.0,96077.0,0.02798544]
[1763271172842,0.02782,96078.0,96077.0,0.02798544]
[1763271173930,0.02782,96078.0,96077.0,0.02898544]
[1763271174987,0.0441524,96078.0,96077.0,0.02898544]
[1763271175962,0.0441524,96078.0,96077.0,0.001]
[1763271176174,0.04393353,96078.0,96077.0,0.02898383]
[1763271176398,0.04393353,96078.0,96077.0,0.02898342]
[1763271176602,0.04393353,96078.0,96077.0,0.001]
[1763271177476,0.0287524,96078.0,96077.0,0.001]
[1763271177852,0.0287524,96078.0,96077.0,0.02898317]
[1763271179471,0.0287524,96078.0,96077.0,0.001]
[1763271179669,0.0287524,96078.0,96077.0,0.02898045]
[1763271180716,0.0163324,96078.0,96077.0,0.02898045]
[1763271180888,0.0163324,96078.0,96077.0,0.001]
[1763271181297,0.0154,96078.0,96077.0,0.02898007]
[1763271181737,0.0154,96078.0,96077.0,0.02998007]
[1763271182356,0.01242,96079.0,96077.0,0.02998007]
[1763271182747,0.01242,96079.0,96078.0,0.02798007]
[1763271183049,0.04550446,96086.0,96078.0,0.02798007]
[1763271183210,0.04550446,96086.0,96082.0,0.10410215]
[1763271183651,0.01216,96083.0,96082.0,0.10410215]
[1763271184256,0.02079446,96086.0,96082.0,0.10410215]
[1763271184462,0.02079446,96088.0,96082.0,0.10410215]
[1763271184745,0.02079446,96087.0,96082.0,0.10410215]
[1763271185632,0.02079446,96089.0,96082.0,0.10410215]
[1763271186393,0.02079446,96089.0,96082.0,0.10510215]
[1763271186815,0.02079446,96089.0,96082.0,0.10410215]
[1763271187495,0.01633211,96091.0,96082.0,0.12685215]
[1763271187684,0.01633211,96091.0,96083.0,0.02798007]
[1763271188542,0.01633211,96091.0,96086.0,0.02798007]
[1763271188775,0.01633211,96091.0,96087.0,0.0085]
[1763271191140,0.01633211,96091.0,96088.0,0.05073007]
[1763271191644,0.01633211,96091.0,96089.0,0.02275]
[1763271192100,0.01633211,96091.0,96089.0,0.05999789]
[1763271192482,5.152e-05,96097.0,96090.0,0.02275]
[1763271192717,5.152e-05,96097.0,96096.0,0.02486]
[1763271194418,5.152e-05,96097.0,96096.0,0.00994]
[1763271194619,5.152e-05,96097.0,96096.0,0.01094]
[1763271198436,5.152e-05,96097.0,96096.0,0.03889956]
[1763271200008,5.152e-05,96097.0,96096.0,0.01094]
[1763271200208,5.152e-05,96097.0,96096.0,0.03892735]
[1763271200407,5.152e-05,96097.0,96096.0,0.01094]
[1763271200785,5.152e-05,96097.0,96096.0,0.03892129]
[1763271207419,5.152e-05,96097.0,96096.0,0.01094]
[1763271211282,5.152e-05,96097.0,96096.0,0.03893241]
[1763271211479,5.152e-05,96097.0,96096.0,0.01094]
[1763271212266,5.152e-05,96097.0,96096.0,0.03386]
[1763271212467,5.152e-05,96097.0,96096.0,0.01094]
[1763271217320,5.152e-05,96097.0,96096.0,0.04825089]
[1763271218307,5.152e-05,96097.0,96096.0,0.01094]
[1763271218691,5.152e-05,96097.0,96096.0,0.04831801]
[1763271219105,5.152e-05,96097.0,96096.0,0.01094]
[1763271219505,0.0163818,96097.0,96096.0,0.03175252]
[1763271219961,0.0163818,96097.0,96096.0,0.01094]
[1763271220328,0.0163818,96097.0,96096.0,0.03175252]
[1763271220755,0.0163818,96097.0,96096.0,0.01094]
[1763271221119,0.0163818,96097.0,96096.0,0.03175252]
[1763271221539,0.0163818,96097.0,96096.0,0.01094]
[1763271222153,0.0163818,96097.0,96096.0,0.03175252]
[1763271225002,0.0163818,96097.0,96096.0,0.01094]
[1763271229837,0.0163818,96097.0,96096.0,0.03386]
[1763271233130,0.0163818,96097.0,96096.0,0.01094]
[1763271236589,0.01053082,96097.0,96096.0,0.01094]
[1763271236791,0.02079446,96105.0,96096.0,0.01094]
[1763271236995,0.02079446,96105.0,96104.0,0.10410215]
[1763271237377,0.02079446,96108.0,96104.0,0.10410215]
[1763271237579,0.02079446,96107.0,96105.0,0.028062]
[1763271238802,0.020846,96108.0,96105.0,0.028062]
[1763271239299,0.01168,96106.0,96105.0,0.028062]
[1763271240704,0.03247446,96106.0,96105.0,0.028062]
[1763271240914,0.03247446,96106.0,96102.0,0.028062]
[1763271240915,0.02696,96106.0,96102.0,0.028062]
[1763271241113,0.04495446,96105.0,96102.0,0.028062]
[1763271241268,0.01528,96103.0,96101.0,0.028062]
[1763271241466,0.02079446,96102.0,96100.0,0.028062]
[1763271241630,0.02079446,96102.0,96099.0,0.028062]
[1763271242036,0.03247446,96106.0,96100.0,0.028062]
[1763271242232,0.02079446,96105.0,96100.0,0.028062]
[1763271242450,0.02079446,96105.0,96100.0,0.029062]
[1763271243086,0.03629,96106.0,96102.0,0.028062]
[1763271243087,0.02079446,96106.0,96102.0,0.028062]
[1763271243307,5.154e-05,96108.0,96103.0,0.028062]
[1763271243738,5.154e-05,96108.0,96101.0,0.11260215]
[1763271243739,0.020846,96108.0,96101.0,0.14066415]
[1763271243955,5.154e-05,96108.0,96102.0,0.028062]
[1763271244071,5.154e-05,96108.0,96103.0,0.028062]
[1763271244969,0.020846,96108.0,96103.0,0.028062]
[1763271250828,0.01167,96104.0,96103.0,0.028062]
[1763271251027,0.01167,96104.0,96102.0,0.028062]
[1763271251224,0.02755,96104.0,96102.0,0.028062]
[1763271251429,0.02079446,96103.0,96102.0,0.028062]
[1763271252387,0.02079446,96103.0,96102.0,0.029062]
[1763271252785,0.02079446,96103.0,96102.0,0.028062]
[1763271253252,0.03667446,96103.0,96102.0,0.029062]
[1763271254005,0.05300505,96103.0,96102.0,0.001]
[1763271254168,0.05300505,96103.0,96102.0,0.029062]
[1763271254386,0.03712505,96103.0,96102.0,0.029062]
[1763271254949,0.03712505,96103.0,96102.0,0.001]
[1763271255149,0.01633059,96103.0,96102.0,0.001]
[1763271259961,0.05359505,96103.0,96102.0,0.02907263]
[1763271260261,0.05359505,96103.0,96102.0,0.001]
[1763271261946,1.33047405,96103.0,96102.0,0.001]
[1763271262184,1.30967959,96103.0,96102.0,0.001]
[1763271262409,1.32922918,96103.0,96102.0,0.001]
[1763271264114,0.323,96102.0,96087.0,0.02807263]
[1763271264348,0.02512,96088.0,96087.0,0.02807263]
[1763271264551,0.02512,96088.0,96086.0,0.02807263]
[1763271264985,0.01647,96087.0,96086.0,0.02807263]
[1763271266232,0.01647,96087.0,96086.0,0.02907263]
[1763271266435,0.01647,96087.0,96086.0,0.002]
[1763271269069,0.00865,96088.0,96086.0,0.002]
[1763271269264,0.01647,96087.0,96086.0,0.002]
[1763271270699,0.00865,96088.0,96086.0,0.002]
[1763271271190,0.00865,96088.0,96086.0,0.001]
[1763271271411,0.00865,96088.0,96086.0,0.002]
[1763271271861,0.02768,96087.0,96086.0,0.001]
[1763271272028,0.01156,96087.0,96086.0,0.001]
[1763271272240,0.01156,96087.0,96086.0,0.002]
[1763271272651,0.01156,96087.0,96086.0,0.001]
[1763271272885,0.01156,96087.0,96082.0,0.13217478]
[1763271273091,0.01156,96087.0,96086.0,0.001]
[1763271273433,0.01156,96087.0,96086.0,0.002]
[1763271273862,0.01156,96087.0,96086.0,0.001]
[1763271274417,0.02768,96087.0,96086.0,0.001]
[1763271274835,0.02768,96087.0,96083.0,0.02807263]
[1763271275065,0.02079446,96086.0,96083.0,0.02807263]
[1763271275474,0.02079446,96086.0,96082.0,0.13317478]
[1763271275682,0.02079446,96086.0,96082.0,0.13217478]
[1763271276123,0.02079446,96086.0,96083.0,0.001]
[1763271276555,0.01156,96084.0,96083.0,0.001]
[1763271276759,0.01156,96084.0,96083.0,0.02807263]
[1763271277823,0.02789159,96084.0,96083.0,0.02807263]
[1763271278678,0.02789159,96084.0,96083.0,0.02907263]
[1763271278965,0.02789159,96084.0,96083.0,0.03007263]
[1763271279187,0.02789159,96084.0,96083.0,0.02907263]
[1763271279510,0.02789159,96084.0,96083.0,0.03007263]
[1763271282700,0.02789159,96084.0,96083.0,0.0300421]
[1763271282867,0.02789159,96084.0,96083.0,0.002]
[1763271283081,0.02789159,96084.0,96083.0,0.0300418]
[1763271283391,0.02789159,96084.0,96083.0,0.002]
[1763271283885,0.04401159,96084.0,96083.0,0.002]
[1763271285752,0.04401159,96084.0,96083.0,0.13415222]
[1763271286493,0.04401159,96084.0,96083.0,0.10610215]
[1763271286702,0.04401159,96084.0,96083.0,0.10510215]
[1763271287133,0.04401159,96084.0,96083.0,0.10610215]
[1763271288150,0.04401159,96084.0,96083.0,0.10510215]
[1763271288383,0.04401159,96084.0,96083.0,0.10410215]
[1763271288537,0.04401159,96084.0,96083.0,0.10510215]
[1763271288740,0.04401159,96084.0,96083.0,0.10610215]
[1763271288941,0.04401159,96084.0,96083.0,0.001]
[1763271289320,0.04401159,96084.0,96083.0,0.02906592]
[1763271289528,0.04401159,96084.0,96083.0,0.03006592]
[1763271290305,0.04401159,96084.0,96083.0,0.002]
[1763271290481,0.04401159,96084.0,96083.0,0.03006592]
[1763271291400,0.04401159,96084.0,96083.0,0.002]
[1763271297449,0.04401159,96084.0,96083.0,0.03009564]
[1763271303356,0.02768,96084.0,96083.0,0.03009564]
[1763271304571,0.01156,96087.0,96083.0,0.002]
[1763271304733,0.01156,96087.0,96086.0,0.10410215]
[1763271304937,0.01156,96087.0,96084.0,0.0280921]
[1763271305177,0.01569,96085.0,96084.0,0.0280921]
[1763271305938,0.01569,96085.0,96083.0,0.001]
[1763271306095,0.01569,96085.0,96084.0,0.10410215]
[1763271306418,0.01156,96087.0,96084.0,0.10410215]
[1763271306642,0.01156,96087.0,96085.0,0.02809086]
[1763271307143,0.01569,96086.0,96085.0,0.02809086]
[1763271307834,0.01569,96086.0,96085.0,0.02909086]
[1763271308358,0.01569,96086.0,96084.0,0.10410215]
[1763271308521,0.01569,96085.0,96084.0,0.10410215]
[1763271309932,0.01156,96087.0,96084.0,0.10510215]
[1763271310116,0.01156,96087.0,96086.0,0.02809167]
[1763271310312,0.01156,96087.0,96084.0,0.10510215]
[1763271310517,0.01569,96085.0,96084.0,0.002]
[1763271311300,0.01569,96085.0,96084.0,0.001]
[1763271311578,0.01569,96085.0,96083.0,0.10410215]
[1763271311776,0.01186,96084.0,96083.0,0.10410215]
[1763271313028,0.01186,96084.0,96083.0,0.12079215]
[1763271314027,0.02738,96084.0,96083.0,0.12079215]
[1763271314428,0.02738,96084.0,96083.0,0.12179215]
[1763271316608,0.02738,96084.0,96083.0,0.1592082]
[1763271317300,0.02738,96084.0,96083.0,0.12179215]
[1763271326573,0.02738,96084.0,96083.0,0.1592082]
[1763271330905,0.01633153,96090.0,96083.0,0.1592082]
[1763271330906,0.01633153,96090.0,96087.0,0.00861]
[1763271331130,0.00612432,96090.0,96088.0,0.06740874]
[1763271331350,5.154e-05,96108.0,96104.0,0.10410215]
[1763271331550,5.154e-05,96108.0,96107.0,0.00872]
[1763271331761,5.154e-05,96108.0,96106.0,0.03739959]
[1763271332186,5.154e-05,96108.0,96107.0,0.01159]
[1763271333334,0.01638053,96108.0,96107.0,0.01159]
[1763271334175,0.01638053,96108.0,96107.0,0.0395946]
[1763271334346,0.01638053,96108.0,96107.0,0.0405946]
[1763271335047,0.01638053,96108.0,96107.0,0.01259]
[1763271335266,0.01638053,96108.0,96107.0,0.04058562]
[1763271336587,0.01638053,96108.0,96107.0,0.01259]
[1763271336995,0.01638053,96108.0,96107.0,0.04158562]
[1763271337153,0.01638053,96108.0,96107.0,0.01259]
[1763271337307,0.01638053,96108.0,96107.0,0.03956874]
[1763271337533,0.01638053,96108.0,96107.0,0.04156874]
[1763271337774,0.01638053,96108.0,96107.0,0.04056874]
[1763271338175,0.01638053,96108.0,96107.0,0.01159]
[1763271338624,0.01638053,96108.0,96107.0,0.01259]
[1763271338840,0.01638053,96108.0,96107.0,0.01359]
[1763271350950,0.01638053,96108.0,96107.0,0.03440013]
[1763271351142,5.154e-05,96108.0,96107.0,0.03440013]
[1763271351950,5.154e-05,96108.0,96107.0,0.03340013]
[1763271352354,5.154e-05,96108.0,96107.0,0.03440013]
[1763271352552,5.154e-05,96108.0,96107.0,0.03340013]
[1763271352759,5.154e-05,96108.0,96107.0,0.03240013]
[1763271353107,5.154e-05,96108.0,96107.0,0.03340013]
[1763271354620,5.154e-05,96108.0,96107.0,0.03540013]
[1763271355218,5.154e-05,96108.0,96107.0,0.09149951]
[1763271357208,5.154e-05,96108.0,96107.0,0.03540013]
[1763271364256,5.154e-05,96108.0,96107.0,0.01459]
[1763271365443,5.154e-05,96108.0,96107.0,0.01159]
[1763271365642,5.154e-05,96108.0,96107.0,0.01259]
[1763271365793,5.154e-05,96108.0,96107.0,0.01359]
[1763271369005,0.01510154,96108.0,96107.0,0.06964603]
[1763271369178,0.01510154,96108.0,96107.0,0.01359]
[1763271371866,0.03142949,96108.0,96107.0,0.01359]
[1763271373300,0.01637949,96108.0,96107.0,0.01359]
[1763271373713,0.03144949,96108.0,96107.0,0.01359]
[1763271373908,0.01637949,96108.0,96107.0,0.01359]
[1763271375055,0.01637949,96108.0,96107.0,0.09045616]
[1763271375597,0.01637949,96108.0,96107.0,0.03440013]
[1763271382196,0.01637949,96108.0,96107.0,0.01359]
[1763271385809,0.01637949,96108.0,96107.0,0.03802]
[1763271386142,0.01637949,96108.0,96107.0,0.01359]
[1763271396512,0.01637949,96108.0,96107.0,0.03625]
[1763271396737,0.01637949,96108.0,96107.0,0.05706013]
[1763271396960,0.32239348,96130.0,96129.0,0.10410215]
[1763271397169,5.154e-05,96130.0,96129.0,0.10410215]
[1763271397380,0.01637784,96130.0,96129.0,0.10410215]
[1763271397799,5.154e-05,96130.0,96129.0,0.10410215]
[1763271400148,0.01621154,96130.0,96129.0,0.10410215]
[1763271400512,0.03253792,96130.0,96129.0,0.10510215]
[1763271401214,0.03253792,96130.0,96129.0,0.13313009]
[1763271421366,0.03253792,96130.0,96129.0,0.10510215]
[1763271421565,0.03253792,96130.0,96129.0,0.001]
[1763271421768,1.28406833,96130.0,96129.0,0.001]
[1763271421971,1.28406833,96130.0,96111.0,0.05610395]
[1763271421972,0.323,96127.0,96111.0,0.02802579]
[1763271422177,0.323,96127.0,96090.0,0.07480526]
[1763271422178,0.02366,96112.0,96109.0,0.02802579]
[1763271422382,0.323,96118.0,96107.0,0.02802579]
[1763271422603,0.323,96116.0,96106.0,0.02802579]
[1763271422918,0.323,96115.0,96103.0,0.02802579]
[1763271423141,0.323,96115.0,96101.0,0.02802579]
[1763271423142,0.01177,96108.0,96101.0,0.02802579]
[1763271423346,0.02725,96102.0,96101.0,0.02802579]
[1763271424286,0.02725,96102.0,96100.0,0.02802579]
[1763271424458,0.01233,96101.0,96100.0,0.02802579]
[1763271424665,0.0508,96101.0,96100.0,0.02802579]
[1763271425184,0.0508,96101.0,96099.0,0.13212794]
[1763271425328,0.0152,96100.0,96099.0,0.13212794]
[1763271425728,0.0152,96100.0,96099.0,0.10410215]
[1763271427694,0.0152,96100.0,96095.0,0.02802579]
[1763271427823,0.0356,96101.0,96099.0,0.10410215]
[1763271428376,0.0152,96100.0,96099.0,0.10410215]
[1763271434001,0.0152,96100.0,96095.0,5.154e-05]
[1763271434208,0.0152,96100.0,96099.0,0.10410215]
[1763271434414,0.0356,96101.0,96099.0,0.10410215]
[1763271434415,0.01233,96101.0,96099.0,0.10410215]
[1763271434626,0.01567,96100.0,96099.0,0.10410215]
[1763271435563,0.03199926,96100.0,96099.0,0.10410215]
[1763271437652,0.01632926,96100.0,96099.0,0.10410215]
[1763271437921,0.01632926,96100.0,96099.0,0.13212794]
[1763271438327,0.01632926,96100.0,96099.0,0.15293981]
[1763271438485,0.03199926,96100.0,96099.0,0.13212794]
[1763271438688,0.03199926,96100.0,96099.0,0.10410215]
[1763271438879,0.03199926,96100.0,96099.0,0.10510215]
[1763271439372,0.03199926,96100.0,96099.0,0.13212794]
[1763271439551,0.03199926,96100.0,96099.0,0.13312794]
[1763271439726,0.03199926,96100.0,96099.0,0.13212794]
[1763271440107,0.03199926,96100.0,96099.0,0.10510215]
[1763271440517,0.03199926,96100.0,96099.0,0.001]
[1763271441696,0.03199926,96100.0,96095.0,5.154e-05]
[1763271441905,0.01567,96096.0,96095.0,5.154e-05]
[1763271448308,0.01567,96096.0,96095.0,0.02807733]
[1763271449370,0.01567,96096.0,96095.0,5.154e-05]
[1763271451366,0.01632926,96100.0,96095.0,5.154e-05]
[1763271451561,0.01632926,96100.0,96099.0,0.10410215]
[1763271452912,0.01632926,96100.0,96099.0,0.21229698]
[1763271453099,0.01632926,96100.0,96099.0,0.21329698]
[1763271454050,0.01632926,96100.0,96099.0,0.19248511]
[1763271454653,0.01632926,96100.0,96099.0,0.19148511]
[1763271455073,0.01632926,96100.0,96099.0,0.13638116]
[1763271460821,0.01632926,96100.0,96099.0,0.03227901]
[1763271460822,0.03179926,96100.0,96099.0,0.03227901]
[1763271461018,0.03179926,96100.0,96099.0,0.001]
[1763271461289,0.06842219,96100.0,96099.0,0.001]
[1763271461692,0.01547,96100.0,96099.0,0.001]
[1763271461868,0.01547,96100.0,96095.0,5.154e-05]
[1763271462113,0.01547,96096.0,96095.0,5.154e-05]
[1763271462729,0.997011,96096.0,96095.0,5.154e-05]
[1763271463363,1.0978551,96096.0,96095.0,5.154e-05]
[1763271464718,0.997011,96096.0,96095.0,5.154e-05]
[1763271465557,0.998011,96096.0,96095.0,5.154e-05]
[1763271472025,1.0174993,96096.0,96095.0,5.154e-05]
[1763271474076,1.04878894,96096.0,96095.0,5.154e-05]
[1763271474902,1.02930064,96096.0,96095.0,5.154e-05]
[1763271475136,1.04563314,96096.0,96095.0,5.154e-05]
[1763271475328,1.14930252,96096.0,96095.0,5.154e-05]
[1763271475489,1.11801288,96096.0,96095.0,5.154e-05]
[1763271476085,1.0143435,96096.0,96095.0,5.154e-05]
[1763271478025,0.998011,96096.0,96095.0,5.154e-05]
[1763271480372,0.01647,96096.0,96095.0,5.154e-05]
[1763271480532,0.03726446,96096.0,96095.0,5.154e-05]
[1763271481992,0.03626446,96096.0,96095.0,5.154e-05]
[1763271484518,0.01547,96096.0,96095.0,5.154e-05]
[1763271487788,0.01633193,96099.0,96095.0,5.154e-05]
[1763271487943,0.01633193,96099.0,96098.0,0.10410215]
[1763271488362,0.03137193,96099.0,96095.0,0.020846]
[1763271488570,0.01504,96096.0,96095.0,0.020846]
[1763271491742,0.03136971,96096.0,96095.0,0.020846]
[1763271491976,0.03136971,96096.0,96095.0,0.021846]
[1763271492172,0.01504,96096.0,96095.0,0.021846]
[1763271493589,0.01633193,96099.0,96095.0,0.021846]
[1763271493790,0.01633193,96099.0,96098.0,0.10410215]
[1763271494236,0.01633193,96099.0,96098.0,0.13538361]
[1763271495308,0.03190193,96099.0,96098.0,0.13538361]
[1763271503345,0.03190193,96099.0,96098.0,0.03128146]
[1763271505734,0.03190193,96099.0,96095.0,5.154e-05]
[1763271505948,0.01633193,96099.0,96098.0,0.10410215]
[1763271506411,0.03190193,96099.0,96098.0,0.10410215]
[1763271509181,0.03190193,96099.0,96098.0,0.13214248]
[1763271510042,0.01633193,96099.0,96098.0,0.12860215]
[1763271510702,0.01633193,96099.0,96098.0,0.10410215]
[1763271510908,0.01633193,96099.0,96098.0,0.12491423]
[1763271511707,0.01633193,96099.0,96098.0,0.12591423]
[1763271512700,0.16120658,96108.0,96098.0,0.12591423]
[1763271512979,0.16120658,96108.0,96105.0,0.02802201]
[1763271513144,0.02356,96113.0,96106.0,0.02802201]
[1763271514469,0.02356,96113.0,96107.0,0.02802201]
[1763271516961,0.01604,96108.0,96107.0,0.02802201]
[1763271517167,0.01604,96108.0,96103.0,0.03736268]
[1763271519278,0.01632902,96107.0,96103.0,0.03736268]
[1763271519841,0.01152,96104.0,96103.0,0.03736268]
[1763271519987,0.01152,96104.0,96102.0,0.03736268]
[1763271521087,0.01604,96103.0,96100.0,0.03736268]
[1763271521940,0.01604,96101.0,96100.0,0.03736268]
[1763271522615,0.01604,96101.0,96099.0,0.03736268]
[1763271522835,0.05606446,96104.0,96098.0,0.03736268]
[1763271523048,0.34379446,96103.0,96101.0,0.02804676]
[1763271523233,0.36754446,96103.0,96100.0,0.02804676]
[1763271523693,0.01604,96101.0,96100.0,0.001]
[1763271523879,0.01604,96101.0,96099.0,0.02804676]
[1763271524146,0.01604,96100.0,96095.0,5.154e-05]
[1763271524359,0.04454446,96103.0,96095.0,5.154e-05]
[1763271524360,0.01604,96096.0,96095.0,5.154e-05]
[1763271541971,1.453456,96096.0,96095.0,5.154e-05]
[1763271542182,1.48572533,96096.0,96095.0,5.154e-05]
[1763271542390,1.71336135,96096.0,96095.0,5.154e-05]
[1763271543215,1.72969456,96096.0,96095.0,5.154e-05]
[1763271543991,1.73069456,96096.0,96095.0,5.154e-05]
[1763271544605,1.83436394,96096.0,96095.0,5.154e-05]
[1763271550356,1.74702824,96096.0,96095.0,5.154e-05]
[1763271551984,1.73069456,96096.0,96095.0,5.154e-05]
[1763271552689,1.7741133,96096.0,96095.0,1.54e-06]
[1763271552873,0.04341874,96091.0,96062.0,0.00024427]
[1763271553076,0.0241,96063.0,96062.0,0.00037915]
[1763271554868,0.04043367,96063.0,96062.0,0.00037915]
[1763271557396,0.06122813,96063.0,96062.0,0.00037915]
[1763271564891,0.04489446,96063.0,96062.0,0.00037915]
[1763271568505,0.06122844,96063.0,96062.0,0.00037915]
[1763271572346,0.06122844,96063.0,96062.0,0.02842591]
[1763271572765,0.06122844,96063.0,96062.0,0.00037915]
[1763271577177,0.38422844,96063.0,96062.0,0.00037915]
[1763271577390,1.72593645,96063.0,96062.0,0.00037915]
[1763271577689,1.39298045,96063.0,96062.0,0.00037915]
[1763271578306,1.37126145,96063.0,96062.0,0.00037915]
[1763271578804,1.33997645,96063.0,96062.0,0.00037915]
[1763271579035,1.35327997,96063.0,96062.0,0.00037915]
[1763271579245,1.20092797,96063.0,96062.0,0.00037915]
[1763271580180,1.18007197,96063.0,96062.0,0.00037915]
[1763271580583,1.16676845,96063.0,96062.0,0.00037915]
[1763271581840,1.15043447,96063.0,96062.0,0.00037915]
[1763271583702,1.1827038,96063.0,96062.0,0.00037915]
[1763271585428,1.19904052,96063.0,96062.0,0.00037915]
[1763271587684,1.07941352,96063.0,96062.0,0.00037915]
[1763271587885,1.05698452,96063.0,96062.0,0.00037915]
[1763271588932,0.81275519,96063.0,96062.0,0.00037915]
[1763271589134,0.64260619,96063.0,96062.0,0.00037915]
[1763271589460,0.38298619,96063.0,96062.0,0.00037915]
[1763271589656,0.49830319,96063.0,96062.0,0.00037915]
[1763271591270,0.49827287,96063.0,96062.0,0.00037915]
[1763271592281,0.47875372,96063.0,96062.0,0.00037915]
[1763271594151,0.49827435,96063.0,96062.0,0.00037915]
[1763271596924,0.51461108,96063.0,96062.0,0.00037915]
[1763271597855,0.6108691,96063.0,96062.0,0.00037915]
[1763271599004,0.59453238,96063.0,96062.0,0.00037915]
[1763271599207,0.83499841,96063.0,96062.0,0.00037915]
[1763271599430,0.53054369,96063.0,96062.0,0.00037915]
[1763271600612,0.73874039,96063.0,96062.0,0.00037915]
[1763271600818,0.53054369,96063.0,96062.0,0.00037915]
[1763271601493,0.49827436,96063.0,96062.0,0.00037915]
[1763271606872,0.48193763,96063.0,96062.0,0.00037915]
[1763271610051,0.55004638,96063.0,96062.0,0.00037915]
[1763271610508,0.49827544,96063.0,96062.0,0.00037915]
[1763271612298,0.51461343,96063.0,96062.0,0.00037915]
[1763271614799,0.52005744,96063.0,96062.0,0.00037915]
[1763271615761,0.76052347,96063.0,96062.0,0.00037915]
[1763271615983,0.74418548,96063.0,96062.0,0.00037915]
[1763271616743,0.8430007,96063.0,96062.0,0.00037915]
[1763271617388,0.84303957,96063.0,96062.0,0.00037915]
[1763271617728,0.84721319,96063.0,96062.0,0.00037915]
[1763271618588,0.84721319,96063.0,96060.0,0.0004]
[1763271618589,0.323,96060.0,96040.0,0.0004]
[1763271618842,2.246932,96051.0,96050.0,0.00049827]
[1763271619047,2.2664915,96051.0,96050.0,0.00049827]
[1763271619450,2.2828302,96051.0,96050.0,0.00082401]
[1763271620107,2.2828302,96051.0,96040.0,0.0004]
[1763271620108,2.0,96050.0,96040.0,0.0004]
[1763271620304,2.35054,96041.0,96040.0,0.00045152]
[1763271620526,2.40236883,96041.0,96040.0,0.00045152]
[1763271621553,0.5416205,96041.0,96040.0,0.00045152]
[1763271621948,0.199061,96041.0,96040.0,0.00045152]
[1763271622234,0.02854,96041.0,96040.0,0.00045152]
[1763271622414,0.02954,96041.0,96040.0,0.00045152]
[1763271622607,0.002,96041.0,96040.0,0.00045152]
[1763271622806,0.03242446,96045.0,96040.0,0.00045152]
[1763271622807,0.01163,96045.0,96040.0,0.00045152]
[1763271630859,0.01163,96045.0,96041.0,0.00024438]
[1763271633285,0.02079446,96044.0,96041.0,0.00024438]
[1763271633986,0.323,96048.0,96041.0,0.00024438]
[1763271634188,0.02079446,96047.0,96041.0,0.00024438]
[1763271635213,0.52079446,96048.0,96041.0,0.00024438]
[1763271635387,0.02079446,96047.0,96041.0,0.00024438]